Cogmind - Beta 13 @@@ ROGUE MODE // 2024.04.27 @ 02:22:20 Player: tartine Result: Destroyed by S-27 Virus with Autogun Performance ------------- Evolutions (3) 1500 Regions Visited (5) 1000 Robots Destroyed (76) 380 Value Destroyed (1709) 1709 Prototype IDs (1) 20 Alien Tech Used (0) 0 Bonus (0) 0 TOTAL SCORE: 4609 Bonus ------- None Cogmind --------- Core Integrity 0/700 Matter 300/300 Energy 100/100 System Corruption 2% Temperature Cool (0) Movement Rolling (100) Location -7/Factory Parts ------- > --- POWER (1) -------- (None) > --- PROPULSION (3) --- Compact Wheel > --- UTILITY (7) ------ Small Storage Unit Hacking Suite > --- WEAPON (2) ------- Chainsword > --- INVENTORY (8) ---- Light Ion Engine Peak State ------------ > --- POWER ------------ Light Deuterium Engine > --- PROPULSION ------- Improved Hover Unit Aerolev Unit Aerolev Unit > --- UTILITY ---------- Improved Signal Interpreter Hacking Suite Hacking Suite Hacking Suite System Shield > --- WEAPON ----------- Spread Laser Spread Laser > --- INVENTORY -------- Ion Engine System Shield Heavy Missile Launcher Heavy Missile Launcher [Rating: 33] Favorites ----------- Power Light Nuclear Core Engine Ion Engine Power Core Light Nuclear Core Propulsion Light Treads Treads Light Treads Leg Carbon-fiber Leg Wheel Compact Wheel Hover Unit Aerolev Unit Flight Unit Flight Unit Utility Hacking Suite Device Tractor Beam Storage Small Storage Unit Processor Advanced Visual Processing Unit Hackware Hacking Suite Weapon Small Laser Energy Gun Small Laser Ballistic Gun Autogun Ballistic Cannon Assault Cannon Launcher Heavy Missile Launcher Special Weapon Mining Laser Slashing Weapon Chainsword Build | -11 -10 -10 -9 -8 -7 ------- Run | Yrd Mat Min Mat Mat Fac Slots Evolved 6 | . . . 2 2 2 Power . | . . . . . . Propulsion 1 | . . . . 1 . Utility 5 | . . . 2 1 2 Weapon . | . . . . . . Parts Attached 69 | 7 12 6 5 23 16 Power 14 | 1 4 1 1 3 4 Engine 11 | 1 3 1 . 3 3 Core 3 | . 1 . 1 . 1 Reactor . | . . . . . . Propulsion 24 | 2 2 4 2 11 3 Treads 4 | 2 2 . . . . Leg 3 | . . 1 1 . 1 Wheel 6 | . . 3 1 . 2 Hover 8 | . . . . 8 . Flight 3 | . . . . 3 . Utility 15 | 2 3 . 1 6 3 Device 6 | 1 1 . 1 3 . Storage 2 | 1 . . . . 1 Processor 2 | . . . . 1 1 Hackware 5 | . 2 . . 2 1 Protection . | . . . . . . Artifact . | . . . . . . Weapon 16 | 2 3 1 1 3 6 Energy Gun 10 | 2 3 1 . 2 2 Energy Cannon . | . . . . . . Ballistic Gun 1 | . . . . . 1 Ballistic Cannon 1 | . . . . 1 . Launcher 2 | . . . . . 2 Special Weapon 1 | . . . 1 . . Impact Weapon . | . . . . . . Slashing Weapon 1 | . . . . . 1 Piercing Weapon . | . . . . . . Special Melee Weapon . | . . . . . . Unidentified Prototypes 1 | . . . . 1 . Parts Lost 37 | . 4 2 10 4 17 Power 6 | . . . 2 . 4 Propulsion 12 | . 1 1 4 3 3 Utility 6 | . . . 1 . 5 Weapon 13 | . 3 1 3 1 5 Highest Loss Streak 9 | . 2 1 9 1 8 To Critical Strikes . | . . . . . . Average Slot Usage (%) 82 | . 96 83 77 80 59 Engine 8 | . 10 4 8 8 4 Core 2 | . 2 9 1 . . Treads 8 | . 26 3 . . . Wheel 3 | . . 8 15 . 1 Hover 6 | . . . . 21 7 Device 7 | . 13 . 10 4 4 Storage 1 | . 4 . . . . Hackware 22 | . 10 28 22 29 27 Energy Gun 19 | . 26 28 18 13 4 Naked Turns . | . . . . . . Heaviest Build 16 | 13 13 13 14 12 16 Greatest Support 40 | 40 40 32 32 32 26 Greatest Overweight (x) 2 | . . 2 1 2 1 Average Overweight (x) . | . . . . . . Largest Inventory Capacity 8 | 8 8 5 5 5 8 Average Capacity 5 | 6 5 5 5 5 5 Most Carried 5 | 1 5 5 3 5 4 Average Carried 2 | . 1 4 2 3 1 Final Capacity 8 | 8 5 5 5 5 8 Final Carried 4 | 1 3 4 . 4 1 Class Distribution -------------------- 37% | Hacker-Mutant 36% | Scavenger-Mutant 26% | Mutant Dominant Class ---------------- Mutant | -10/Materials Scavenger-Mutant | -10/Mines Scavenger-Mutant | -9/Materials Hacker-Mutant | -8/Materials Hacker-Mutant | -7/Factory Resources | -11 -10 -10 -9 -8 -7 ----------- Run | Yrd Mat Min Mat Mat Fac Matter Collected 990 | 270 105 88 33 267 227 Remotely 173 | 88 85 . . . . Salvage Created 1993 | 59 590 260 369 427 288 Parts 142 | 2 47 10 18 45 20 Haulers Intercepted . | . . . . . . Recyclers Shooed 4 | . 3 . 1 . . Parts Field Recycled . | . . . . . . Retrieved Matter . | . . . . . . Parts Self-Destructed . | . . . . . . Prevented . | . . . . . . Kills | -11 -10 -10 -9 -8 -7 ------- Run | Yrd Mat Min Mat Mat Fac Combat Hostiles Destroyed 46 | . 11 5 6 17 7 Guns 38 | . 9 5 5 13 6 Cannons 5 | . . . 1 4 . AOE 3 | . 2 . . . 1 Classes Destroyed 9 | 1 6 . 1 1 . Worker 10 | . 3 . 2 1 4 Builder 2 | . 1 . . . 1 Recycler 5 | 1 . 2 1 . 1 Mechanic 1 | . . . 1 . . Operator 6 | . 3 . 1 2 . Watcher 6 | . 2 . 1 3 . Swarmer 18 | . 2 3 . 8 5 Grunt 25 | . 9 2 6 6 2 Sentry 3 | . . . . 3 . Best Kill Streak 7 | 1 3 2 4 7 4 Combat Bots Only 7 | . 2 2 2 7 4 Max Kills in Single Turn 2 | 1 2 1 1 1 2 Gunslinging . | . . . . . . Exploded 1 | . 1 . . . 1 Melee . | . . . . . . Uniques/NPCs Destroyed . | . . . . . . Combat | -11 -10 -10 -9 -8 -7 -------- Run | Yrd Mat Min Mat Mat Fac Hostile Shots Fired 415 | . 69 33 68 79 166 Missed 120 | . 20 9 18 22 51 Damage Taken 3988 | . 591 244 665 662 1826 Core 1360 | . 126 101 298 131 704 Absorbed by Shields . | . . . . . . Regen/Repaired (Parts) 190 | . . . . 138 52 Core Remaining (%) 52 | 100 . 9 25 76 . Volleys Fired 230 | 1 71 31 30 62 35 Largest 2 | 2 2 2 2 2 2 Hottest 130 | 80 80 105 105 130 104 Shots Fired 386 | 2 117 61 56 109 41 Gun 370 | 2 117 61 53 101 36 Cannon 8 | . . . . 8 . Launcher 5 | . . . . . 5 Special 3 | . . . 3 . . Kinetic 18 | . . . . 8 10 Thermal 317 | . 73 61 56 101 26 Explosive 5 | . . . . . 5 Electromagnetic 46 | 2 44 . . . . Robot Hit Streak 17 | 2 10 7 17 12 10 Robot Miss Streak 16 | . 3 3 2 16 8 Penetration Max . | . . . . . . Secondary Targets 2 | . . 1 . 1 . Max Gunslinging Chain 1 | . . 1 . 1 . Shots Hit Robots 275 | 2 76 33 44 89 31 Core Hits 226 | 1 36 10 22 119 38 Critical Kills . | . . . . . . Critical Parts Destroyed . | . . . . . . Critical Strikes 5 | . 3 . 2 . . Burn 2 | . . . 2 . . Corrupt 3 | . 3 . . . . Melee Attacks 4 | . . . . . 4 Impact . | . . . . . . Slashing 4 | . . . . . 4 Piercing . | . . . . . . Sneak Attacks 4 | . . . . . 4 Combat Hostiles . | . . . . . . Follow-up Attacks . | . . . . . . Damage Inflicted 4552 | 33 1166 373 676 1193 1111 Guns 3353 | 12 968 373 568 1052 380 Cannons 141 | . . . . 141 . Explosions 639 | 21 190 . . . 428 Melee 298 | . . . . . 298 Ramming 49 | . 8 . 36 . 5 Kinetic 223 | . . . . 141 82 Thermal 3102 | 21 718 373 640 1052 298 Explosive 428 | . . . . . 428 Electromagnetic 452 | 12 440 . . . . Impact . | . . . . . . Slashing 298 | . . . . . 298 Piercing . | . . . . . . Highest Corruption 2 | . 1 1 . . 2 Average Corruption 1 | . 1 1 . . 1 Corruption Purged . | . . . . . . Corruption Blocked . | . . . . . . Effects 16 | . 5 7 . . 4 Message Errors 5 | . . 2 . . 3 Matter Fused 4 | . . 4 . . . Heat Flow Errors 2 | . 1 1 . . . Energy Discharges 2 | . 1 . . . 1 Data Loss (major) 1 | . 1 . . . . Misfires 1 | . 1 . . . . Weapon Failures 1 | . 1 . . . . Overload Shots . | . . . . . . Overflow Damage 134 | . 3 . . . 131 Projectiles . | . . . . . . Explosions 60 | . 3 . . . 57 Melee 74 | . . . . . 74 Knockbacks 1 | . . . . 1 . Impact . | . . . . . . Kinetic 1 | . . . . 1 . Secondary . | . . . . . . Self-Inflicted Damage 75 | . 18 . 14 . 43 Shots 3 | . 2 . . . 1 Rammed 25 | . 3 . 20 . 2 Targets Rammed 27 | . 5 . 20 . 2 Kicked . | . . . . . . Crushed 2 | . 2 . . . . Highest Temperature 404 | 18 323 275 382 404 99 Average Temperature 105 | 12 75 102 112 141 37 Received Heat Transfer 1509 | . 300 81 414 270 444 Effects 13 | . 1 1 5 6 . Shutdowns 3 | . . . 1 2 . Energy Bleed 3 | . . . . 3 . Interference 6 | . 1 1 4 . . Matter Decay 1 | . . . . 1 . Siege Activations . | . . . . . . Robots Corrupted . | . . . . . . Combat Hostiles . | . . . . . . Parts Fried 4 | . 4 . . . . Impact Corruptions . | . . . . . . Robots Melted . | . . . . . . Combat Hostiles . | . . . . . . Parts Melted 4 | . . 2 2 . . Heat Transferred 5840 | 50 1550 849 1624 1325 442 Parts Sabotaged . | . . . . . . Parts Stolen . | . . . . . . Parts Stripped . | . . . . . . Power Chain Reactions 5 | 1 4 . . . . Alert | -11 -10 -10 -9 -8 -7 ------- Run | Yrd Mat Min Mat Mat Fac Peak Influence 394 | 5 195 102 183 394 223 Initial 65 | . 3 62 27 12 65 Average 109 | 3 80 68 64 209 109 Maximum Alert Level 1 | . . . . 1 1 Low Security (%) 85 | 100 100 100 100 41 97 Level 1 14 | . . . . 58 2 Level 2 . | . . . . . . Level 3 . | . . . . . . Level 4 . | . . . . . . Level 5 . | . . . . . . High Security . | . . . . . . Max Security . | . . . . . . Squads Dispatched 15 | . 3 . 5 2 5 Investigation 2 | . . . 2 . . Extermination . | . . . . . . Reinforcement 9 | . 3 . 2 2 2 Assault 1 | . . . 1 . . Garrison 3 | . . . . . 3 Intercept . | . . . . . . Searches Triggered . | . . . . . . Construction Impeded . | . . . . . . Haulers Reinforced 1 | . . . . . 1 Active Scanning Responses . | . . . . . . Cargo Convoy Interrupts . | . . . . . . Stealth | -11 -10 -10 -9 -8 -7 --------- Run | Yrd Mat Min Mat Mat Fac Distress Signals 3 | . . . 1 1 1 Communications Jammed . | . . . . . . Distress Signals . | . . . . . . Times Spotted 98 | . 21 5 17 32 23 Peak Tracking Total 12 | . 4 3 7 6 12 Tactical Retreats 7 | . 2 . 1 1 3 Traps | -11 -10 -10 -9 -8 -7 ------- Run | Yrd Mat Min Mat Mat Fac Traps Triggered 4 | . 2 . 1 . 1 Indirectly . | . . . . . . Trap Hack Attempts . | . . . . . . Triggered . | . . . . . . Disarmed 4 | . . . . . 4 Reprogrammed . | . . . . . . Reused . | . . . . . . Traps Extracted . | . . . . . . Installed . | . . . . . . Triggered . | . . . . . . Machines | -11 -10 -10 -9 -8 -7 ---------- Run | Yrd Mat Min Mat Mat Fac Machines Disabled 1 | . 1 . . . . Max in Single Turn 1 | . 1 . . . . Machines Repaired . | . . . . . . Machines Dismantled . | . . . . . . Machines Sabotaged . | . . . . . . Overloaded Fab Kills . | . . . . . . Hacking | -11 -10 -10 -9 -8 -7 --------- Run | Yrd Mat Min Mat Mat Fac Machines Accessed 18 | . 3 . 4 7 4 Terminals 13 | . 3 . 3 6 1 Fabricators 1 | . . . . . 1 Repair Stations 2 | . . . . 1 1 Recycling Units 2 | . . . 1 . 1 Scanalyzers . | . . . . . . Garrison Access . | . . . . . . Total Hacks 47 | . 8 . 9 20 10 Successful 22 | . . . 4 12 6 Failed 25 | . 8 . 5 8 4 Catastrophic 7 | . 2 . . 5 . Database Lockouts . | . . . . . . Manual 26 | . 8 . 2 13 3 Terminals 28 | . 8 . 6 13 1 Fabricators 5 | . . . . . 5 Repair Stations 10 | . . . . 7 3 Recycling Units 4 | . . . 3 . 1 Scanalyzers . | . . . . . . Garrison Access . | . . . . . . Terminal Hacks 9 | . . . 3 5 1 Record 2 | . . . . 2 . Branch Access Points 2 | . . . 1 1 . Emergency Access Points 1 | . . . 1 . . Alert Level 1 | . . . . 1 . Unreport Threat 2 | . . . 1 1 . Disarm Traps 1 | . . . . . 1 Fabricator Hacks 2 | . . . . . 2 Network Status 1 | . . . . . 1 Build 1 | . . . . . 1 Repair Station Hacks 9 | . . . . 7 2 Scan Component 5 | . . . . 4 1 Repair 4 | . . . . 3 1 Recycling Unit Hacks 1 | . . . 1 . . Process 1 | . . . 1 . . Scanalyzer . | . . . . . . Garrison Access Hacks . | . . . . . . Unauthorized Hacks 1 | . . . . . 1 Terminals . | . . . . . . Fabricators . | . . . . . . Repair Stations . | . . . . . . Recycling Units 1 | . . . . . 1 Mask 1 | . . . . . 1 Scanalyzers . | . . . . . . Garrison Access . | . . . . . . Data Cores Recovered . | . . . . . . Used . | . . . . . . Hacking Detections 14 | . 3 . 3 7 1 Full Trace Events 2 | . 1 . 1 . . Feedback Events 1 | . 1 . . . . Corruption 1 | . 1 . . . . Feedback Blocked . | . . . . . . Robot Schematics Acquired . | . . . . . . Robots Built 2 | . . . . . 2 Authchips . | . . . . . . Time 67 | . . . . . 67 Total Robot Build Rating 8 | . . . . . 8 Part Schematics Acquired . | . . . . . . Parts Built . | . . . . . . Authchips . | . . . . . . Time . | . . . . . . Total Part Build Rating . | . . . . . . Parts Repaired 4 | . . . . 3 1 Time 140 | . . . . 130 10 Parts Recycled . | . . . . . . Recycled Matter 3 | . . . 3 . . Retrieved Matter . | . . . . . . Retrieved Components . | . . . . . . Parts Scanalyzed . | . . . . . . Part Schematics Acquired . | . . . . . . Parts Damaged . | . . . . . . Bothacking | -11 -10 -10 -9 -8 -7 ------------ Run | Yrd Mat Min Mat Mat Fac Used RIF Installer . | . . . . . . Robots Hacked . | . . . . . . Non-combat . | . . . . . . Combat . | . . . . . . Robot Hacks Applied . | . . . . . . Relay Couplers Released . | . . . . . . Fabnet Peak Effective % . | . . . . . . Robots Rewired . | . . . . . . Allies Hacked . | . . . . . . Hacks Repelled . | . . . . . . Allies | -11 -10 -10 -9 -8 -7 -------- Run | Yrd Mat Min Mat Mat Fac Total Allies 2 | . . . . . 2 Largest Group 2 | . . . . . 2 Highest-Rated Group 64 | . . . . . 64 Highest-Rated Ally 32 | . . . . . 32 Total Orders . | . . . . . . Ally Attacks 6 | . . . . . 6 Total Damage 183 | . . . . . 183 Kills 3 | . . . . . 3 Allies Corrupted . | . . . . . . Allies Melted . | . . . . . . Intel | -11 -10 -10 -9 -8 -7 ------- Run | Yrd Mat Min Mat Mat Fac Robot Analysis Total . | . . . . . . Derelict Logs Recovered 2 | . . 2 . . . Drone Launches . | . . . . . . Drone Recoveries . | . . . . . . Exploration | -11 -10 -10 -9 -8 -7 ------------- Run | Yrd Mat Min Mat Mat Fac Turns Passed 3454 | 70 1053 622 420 833 456 Spaces Moved 2414 | 37 476 384 247 855 415 Core 365 | 2 . 144 59 63 97 Treads 583 | 35 476 72 . . . Legs 7 | . . . 5 . 2 Wheels 405 | . . 168 183 . 54 Hover 1024 | . . . . 762 262 Flight 30 | . . . . 30 . Fastest Speed 34 | 50 160 100 50 34 50 Average Speed 90 | 154 160 130 87 48 58 Slowest Speed 200 | 160 160 160 120 200 120 Overloaded Moves . | . . . . . . Propulsion Burnouts . | . . . . . . Robots Hopped . | . . . . . . Cave-ins Triggered . | . . . . . . Exploration Rate (%) 42 | 4 77 73 27 56 19 Regions Visited 5 Branch Regions 1 Pre-discovered Areas . | . . . . . . Known Exits Taken 1 | . . . 1 . . Unknown Exits Taken 4 | 1 1 1 . 1 . Scrap Searched 1 | . . 1 . . . Spaces Dug . | . . . . . . Terrain Destroyed 49 | 2 24 . . 2 21 Melee . | . . . . . . Projectile 2 | . . . . 2 . AOE 47 | 2 24 . . . 21 Terrain Rammed . | . . . . . . Walls Destroyed . | . . . . . . Machines Disabled . | . . . . . . Actions | -11 -10 -10 -9 -8 -7 --------- Run | Yrd Mat Min Mat Mat Fac Total 3260 | 45 645 445 388 1158 579 Wait 481 | . 72 20 86 204 99 Move 2409 | 36 475 383 246 854 415 Hop . | . . . . . . Pick Up 17 | 1 4 2 . 5 5 Fast Attach 48 | 7 8 3 2 21 7 Attach 13 | . 1 1 3 . 8 Detach . | . . . . . . Swap 8 | . 3 2 . 2 1 Drop 23 | . 6 3 1 10 3 Fire 230 | 1 71 31 30 62 35 Melee 4 | . . . . . 4 Ram 22 | . . . 20 . 2 Kick . | . . . . . . Crush 5 | . 5 . . . . Escape Stasis . | . . . . . . Rewire . | . . . . . . Trap . | . . . . . . Miscellaneous . | . . . . . . Route ------- -11/Scrapyard -10/Materials (discovered 4 exits: *Mat x2 / [*Min x2]) -10/Mines -9/Materials (discovered 3 exits: *Mat / Min x2) -8/Materials -7/Factory History --------- Turn | Location | Event 9 | -11/Scrapyard | Discovered new exit (range 15) 71 | -11/Scrapyard | Entered Materials 87 | -10/Materials | Discovered new exit (range 15) 305 | -10/Materials | Build established: Mutant 471 | -10/Materials | Discovered new exit (range 14) 706 | -10/Materials | Discovered new exit (range 4) 984 | -10/Materials | Core integrity fell below 50% 1094 | -10/Materials | Discovered new exit (range 12) 1124 | -10/Materials | Entered Mines 1153 | -10/Mines | Learned 2 Materials zone layouts 1178 | -10/Mines | Met a Derelict testing a Signal Generator 1185 | -10/Mines | Found Signal Generator 1210 | -10/Mines | Build established: Scavenger-Mutant 1369 | -10/Mines | Learned location of 1 exit from Materials 1636 | -10/Mines | Core integrity fell below 20% 1736 | -10/Mines | Discovered new exit (range 5) 1746 | -10/Mines | Entered Materials 1746 | -9/Materials | Evolved 2 slots: Utility x2 1747 | -9/Materials | Identified exit to Materials 1748 | -9/Materials | Identified exit to Mines 2128 | -9/Materials | Core integrity fell below 50% 2166 | -9/Materials | Entered another Materials area 2166 | -8/Materials | Evolved 2 slots: Propulsion x1, Utility x1 2171 | -8/Materials | Lost 9 parts (2p3n1u3w) 2411 | -8/Materials | Build established: Hacker-Mutant 2640 | -8/Materials | Destroyed 7 combat bots 2859 | -8/Materials | Repaired Lgt. Deuterium Engine 2921 | -8/Materials | Repaired Aerolev Unit 2954 | -8/Materials | Repaired Imp. Hover Unit 2985 | -8/Materials | Discovered new exit (range 16) 2999 | -8/Materials | Entered Factory 2999 | -7/Factory | Evolved 2 slots: Utility x2 3071 | -7/Factory | Fabricated Y-54 Guardian (x2) 3170 | -7/Factory | Repaired Spread Laser 3238 | -7/Factory | Garrison activated, responded to threat 3259 | -7/Factory | Lost 4 parts (1p1n2u) 3305 | -7/Factory | Core integrity fell below 50% 3318 | -7/Factory | Lost 8 parts (2p1n1u4w) 3446 | -7/Factory | Core integrity fell below 20% 3455 | -7/Factory | Destroyed by S-27 Virus with Autogun Last Messages --------------- 03399_ Acquired 30 matter. 03400_ Acquired 25 matter. 03402_ T ,3 /1X340FR=ML2 |T 03407_ R-06 Scavenger collects Lgt. Ion Engine. 03407_ Sneak attack on R-06 Scavenger. 03407_ R-06 Scavenger destroyed. 03410_ Acquired Com. Wheel. 03414_ Acquired Lgt. Ion Engine. 03417_ Acquired 63 matter. 03419_ Acquired Sml. Storage Unit. 03420_ Acquired 10 matter. 03442_ O-16 Technician: "IFF HANDSHAKE FAILED. SECURING TERMINAL." 03445_ Triggered Heavy Explosive Trap. 03445_ An explosion rips through the floor. 03445_ Pressure Siphon disabled. 03449_ Hacking Suite destroyed. 03450_ Wheel destroyed. 03451_ Lgt. Ion Engine destroyed. 03454_ MHF QLYRE GJ2EG3BALNUGSN HVYOU2&MTHII>RR Map ----- +----------------------------------------------------+ | ?????????????????????????????????????????????????? | | ??????????????????????????? ?????????????????? | | ??????????????????????????# #????????????????? | | ??????????????????????????# #????????????????? | | ??????????????????????????# #????????????????? | | ??????????????????????????+ +????????????????? | | ??????????????????????????# #????????????????? | | ??????????????????????????# #????????????????? | | ???????????????#######+#### #????????????????? | | ??????????????? % = #????????????????? | | ??????????????? #??#+????????????? | | ??????????????? "" ""s =#??# ????????????? | | ??????????????? "F "" #??# ????????????? | | ????????????????? """"" ##?# #???????????? | | ????????????????????# ### #???????????? | | ????????????????????# s ## ###?????????? | | ????????????????????# !u #?????????? | | ????????????????????# #?????????? | | ????????????????????# ########### | | ????????????????????# ^ """ # | | ????????????????????# sss " """ # ! | | ????????????????????# ""s """" """" # | | ????????????????????# "" #? """" | | ????????????????????# "Tss """" """" # !! """" | | ????????????????????# "" """" """" # !! """" | | ????????????????????# ""@ """" """" + ! """" | | ????????????????????# t # """" | | ??????????????????? + ! # """" | | ??????????????????[ # ####### #### # """" | | ?????????????????##?#+??????#+#??# # | | ?????????????????????????????????# # | | ?????????????????????????????????# ########+## | | ?????????????????????????????????# | | ?????????????????????????????????+ #####+##+## | | ?????????????????????????????????# #???# | | ?????????????????????????????????# #???#% | | ?????????????????????????????????# #???# | | ?????????????????????????????????# #???#! | | ?????????????????????????????????# #???#! | | ????????????????????????????????? #???# | | ????????????????????????????????## ????####### | | ?????????????????????????????????# ??????????? | | ?????????????????????????????????# ??????????? | | ?????????????????????????????????# ??????????? | | ?????????????????????????????????# ??????????? | | ?????????????????????????????????? ??????????? | | ???????????????????????????????????? ??????????? | | ?????????????????????????????????????????????????? | | ?????????????????????????????????????????????????? | | ?????????????????????????????????????????????????? | +----------------------------------------------------+ Best States ------------- Heat Dissipation 48 Energy Generation 18 Energy Capacity 275 Matter Stores 300 Matter Capacity 300 Sight Range 20 Robot Scan Range 14 Terrain Scan Density 10 Additional Mass Support 9 Evasion (%) 63 Recoil Reduction 2 Offensive Hacking 30 Defensive Hacking 20 Item Schematics ----------------- None Robot Schematics ------------------ None Fabricated ------------ Y-54 Guardian | x2 | -7/Factory | Preloaded Alien Tech Used ----------------- None Achievements -------------- True Hacker Challenges ------------ None Game ------ Seed ArchitectGaussLattice Manual? 0 Play Time 00:32:36 Cumulative 26.2 hours Start 2024.04.27 @ 01:54:47 End 2024.04.27 @ 02:22:20 Sessions 1 Manual Loads 0 Difficulty Rogue Special Mode None Game No. 34 Rogue 34 Adventurer 0 Explorer 0 Win Type - Total 1 Types 1/0/0/0/0/0/0/0/0 Lore% 27 Gallery% 34 Achievement% 29 Wizard Run 0 Options --------- Layout 1 ASCII 0 Keyboard 0 Movement Mouse Keybinds 0 Fullscreen 1 Font 24/Smallcaps Map View 50x35 Zoom Use 0% Tactical HUD 1 Map Filters NONE Filters NONE Steam 1 RUN: 1552cf0d-26b8-43ed-92ef-b8e46e40c47f